[Event "Late-Titled-Tuesday-Blitz-January-23-2024"]
[Site "Chess.com"]
[Date "2024.01.23"]
[Round "2"]
[White "NovakCabarkapa"]
[Black "TimGrutter03"]
[Result "1/2-1/2"]
[WhiteElo "2813"]
[BlackElo "2557"]
[TimeControl "180+1"]
[EndTime "14:19:54 PST"]
[Termination "Game drawn by stalemate"]

1. d4 {[%clk 0:03:00.9]} 1... d5 {[%clk 0:02:57.2]} 2. Nc3 {[%clk 0:03:00.6]}
2... Nf6 {[%clk 0:02:56.3]} 3. Bf4 {[%clk 0:03:01.1]} 3... g6 {[%clk 0:02:49.5]}
4. e3 {[%clk 0:03:00.9]} 4... Bg7 {[%clk 0:02:49.9]} 5. h4 {[%clk 0:03:01.4]}
5... h6 {[%clk 0:02:49.5]} 6. Nf3 {[%clk 0:03:00.1]} 6... Bf5 {[%clk 0:02:46.3]}
7. Ne5 {[%clk 0:02:57.5]} 7... Ne4 {[%clk 0:02:44.8]} 8. Nxe4 {[%clk 0:02:44]}
8... Bxe4 {[%clk 0:02:39]} 9. f3 {[%clk 0:02:42.8]} 9... Bf5 {[%clk 0:02:38.9]}
10. g4 {[%clk 0:02:43.4]} 10... Bc8 {[%clk 0:02:39.5]} 11. Bd3 {[%clk 0:02:43]}
11... Nd7 {[%clk 0:02:35.7]} 12. Nxg6 {[%clk 0:02:23.2]} 12... fxg6 {[%clk
0:02:35.1]} 13. Bxg6+ {[%clk 0:02:24.1]} 13... Kf8 {[%clk 0:02:35.6]} 14. Qd3
{[%clk 0:02:22]} 14... e5 {[%clk 0:02:24.9]} 15. Bg3 {[%clk 0:02:19.6]} 15...
Qf6 {[%clk 0:02:17.2]} 16. O-O-O {[%clk 0:02:00.8]} 16... e4 {[%clk 0:02:16.3]}
17. Qa3+ {[%clk 0:02:00.2]} 17... Kg8 {[%clk 0:01:45.3]} 18. h5 {[%clk
0:01:47.7]} 18... Bf8 {[%clk 0:01:42.1]} 19. Qb3 {[%clk 0:01:38.3]} 19... Nb6
{[%clk 0:01:30.8]} 20. fxe4 {[%clk 0:01:35]} 20... Qe6 {[%clk 0:01:20.1]} 21.
Rdf1 {[%clk 0:01:27.4]} 21... c6 {[%clk 0:00:47.3]} 22. exd5 {[%clk 0:00:48.5]}
22... cxd5 {[%clk 0:00:48.2]} 23. e4 {[%clk 0:00:44.5]} 23... Be7 {[%clk
0:00:37.7]} 24. exd5 {[%clk 0:00:37.7]} 24... Bg5+ {[%clk 0:00:30.8]} 25. Kb1
{[%clk 0:00:33]} 25... Qe3 {[%clk 0:00:30.7]} 26. Qb4 {[%clk 0:00:19.6]} 26...
Bxg4 {[%clk 0:00:20.2]} 27. Be5 {[%clk 0:00:15.2]} 27... Bf3 {[%clk 0:00:10.7]}
28. Rh3 {[%clk 0:00:14.1]} 28... Nxd5 {[%clk 0:00:08.4]} 29. Qxb7 {[%clk
0:00:14.4]} 29... Nc3+ {[%clk 0:00:08.6]} 30. bxc3 {[%clk 0:00:13.2]} 30... Bxb7
{[%clk 0:00:09.2]} 31. Bf7+ {[%clk 0:00:13.7]} 31... Kf8 {[%clk 0:00:06.3]} 32.
Rxe3 {[%clk 0:00:13.6]} 32... Bxe3 {[%clk 0:00:06]} 33. Bd5+ {[%clk 0:00:12.6]}
33... Ke7 {[%clk 0:00:04.7]} 34. Bxb7 {[%clk 0:00:12.8]} 34... Rhb8 {[%clk
0:00:04.6]} 35. Bxb8 {[%clk 0:00:04.6]} 35... Rxb8 {[%clk 0:00:05.5]} 36. a3
{[%clk 0:00:04.8]} 36... Rxb7+ {[%clk 0:00:05.8]} 37. Ka2 {[%clk 0:00:05.7]}
37... Bd2 {[%clk 0:00:05.1]} 38. Rf3 {[%clk 0:00:04.7]} 38... Bg5 {[%clk
0:00:03.4]} 39. c4 {[%clk 0:00:04]} 39... Ke6 {[%clk 0:00:03.9]} 40. Rd3 {[%clk
0:00:03.9]} 40... Kf5 {[%clk 0:00:03.4]} 41. d5 {[%clk 0:00:04.2]} 41... Ke4
{[%clk 0:00:03.7]} 42. c5 {[%clk 0:00:04.1]} 42... Rb5 {[%clk 0:00:02.4]} 43.
Rc3 {[%clk 0:00:03.1]} 43... Kxd5 {[%clk 0:00:02.5]} 44. c6 {[%clk 0:00:03.8]}
44... Rb8 {[%clk 0:00:02.9]} 45. c7 {[%clk 0:00:03.9]} 45... Rc8 {[%clk
0:00:03.4]} 46. Kb3 {[%clk 0:00:04.2]} 46... Kd6 {[%clk 0:00:03.5]} 47. Rd3+
{[%clk 0:00:04.7]} 47... Kxc7 {[%clk 0:00:03.8]} 48. c4 {[%clk 0:00:05.6]} 48...
Kb7 {[%clk 0:00:04.2]} 49. Rd7+ {[%clk 0:00:05.8]} 49... Rc7 {[%clk 0:00:04.5]}
50. Rd6 {[%clk 0:00:06.7]} 50... Re7 {[%clk 0:00:04.3]} 51. Ka4 {[%clk
0:00:06.8]} 51... Re5 {[%clk 0:00:04.1]} 52. Rg6 {[%clk 0:00:06.2]} 52... Rc5
{[%clk 0:00:04.3]} 53. Rg7+ {[%clk 0:00:06.4]} 53... Rc7 {[%clk 0:00:04.3]} 54.
Rg6 {[%clk 0:00:07]} 54... Rxc4+ {[%clk 0:00:04.3]} 55. Kb5 {[%clk 0:00:07.7]}
55... Rc7 {[%clk 0:00:04.9]} 56. a4 {[%clk 0:00:08.3]} 56... Re7 {[%clk
0:00:05.2]} 57. a5 {[%clk 0:00:08.4]} 57... Re5+ {[%clk 0:00:05.4]} 58. Ka4
{[%clk 0:00:08.8]} 58... Bd8 {[%clk 0:00:05.4]} 59. a6+ {[%clk 0:00:09.1]} 59...
Kb8 {[%clk 0:00:04.6]} 60. Rxh6 {[%clk 0:00:09.7]} 60... Bb6 {[%clk 0:00:03.5]}
61. Rh7 {[%clk 0:00:09.4]} 61... Rg5 {[%clk 0:00:02.4]} 62. h6 {[%clk
0:00:09.6]} 62... Be3 {[%clk 0:00:02.3]} 63. Rh8+ {[%clk 0:00:09.2]} 63... Kc7
{[%clk 0:00:02.9]} 64. h7 {[%clk 0:00:10.1]} 64... Rh5 {[%clk 0:00:03.3]} 65.
Re8 {[%clk 0:00:09.3]} 65... Rh4+ {[%clk 0:00:03.1]} 66. Kb5 {[%clk 0:00:09.3]}
66... Rxh7 {[%clk 0:00:03.6]} 67. Rxe3 {[%clk 0:00:09.5]} 67... Rh5+ {[%clk
0:00:04.4]} 68. Kb4 {[%clk 0:00:10.2]} 68... Kb6 {[%clk 0:00:04.8]} 69. Re6+
{[%clk 0:00:10.6]} 69... Kc7 {[%clk 0:00:05.3]} 70. Kc4 {[%clk 0:00:11.2]} 70...
Ra5 {[%clk 0:00:04.8]} 71. Kb4 {[%clk 0:00:11.7]} 71... Ra1 {[%clk 0:00:05.2]}
72. Rh6 {[%clk 0:00:12.1]} 72... Rb1+ {[%clk 0:00:05.3]} 73. Kc5 {[%clk
0:00:12.5]} 73... Rc1+ {[%clk 0:00:05.8]} 74. Kb5 {[%clk 0:00:13.2]} 74... Rb1+
{[%clk 0:00:06.4]} 75. Kc5 {[%clk 0:00:13.9]} 75... Rc1+ {[%clk 0:00:06.8]} 76.
Kd5 {[%clk 0:00:14.6]} 76... Rd1+ {[%clk 0:00:07]} 77. Kc4 {[%clk 0:00:15.1]}
77... Rc1+ {[%clk 0:00:07.3]} 78. Kb3 {[%clk 0:00:15.7]} 78... Rb1+ {[%clk
0:00:06.8]} 79. Ka4 {[%clk 0:00:15.8]} 79... Ra1+ {[%clk 0:00:07.1]} 80. Kb4
{[%clk 0:00:16.5]} 80... Rb1+ {[%clk 0:00:07.5]} 81. Kc3 {[%clk 0:00:17.1]}
81... Rc1+ {[%clk 0:00:07.8]} 82. Kb2 {[%clk 0:00:17.3]} 82... Rc6 {[%clk
0:00:05.9]} 83. Rxc6+ {[%clk 0:00:17]} 83... Kxc6 {[%clk 0:00:06.8]} 84. Ka1
{[%clk 0:00:17.5]} 84... Kb6 {[%clk 0:00:07.7]} 85. Kb1 {[%clk 0:00:18.4]} 85...
Kxa6 {[%clk 0:00:08.5]} 86. Ka1 {[%clk 0:00:19.3]} 86... Kb6 {[%clk 0:00:09.4]}
87. Kb1 {[%clk 0:00:20.2]} 87... a6 {[%clk 0:00:10.3]} 88. Ka1 {[%clk
0:00:21.1]} 88... Ka7 {[%clk 0:00:11.1]} 89. Kb1 {[%clk 0:00:22]} 89... Kb6
{[%clk 0:00:12]} 90. Ka1 {[%clk 0:00:22.9]} 90... Ka7 {[%clk 0:00:12.9]} 91. Kb1
{[%clk 0:00:23.8]} 91... Kb7 {[%clk 0:00:13.7]} 92. Ka1 {[%clk 0:00:24.7]} 92...
Kc6 {[%clk 0:00:14.6]} 93. Kb1 {[%clk 0:00:25.6]} 93... Kb5 {[%clk 0:00:15]} 94.
Ka1 {[%clk 0:00:26.5]} 94... Ka5 {[%clk 0:00:15.9]} 95. Kb1 {[%clk 0:00:27.2]}
95... Kb4 {[%clk 0:00:16.8]} 96. Ka1 {[%clk 0:00:28.1]} 96... Kc5 {[%clk
0:00:17.7]} 97. Kb1 {[%clk 0:00:29]} 97... Kb5 {[%clk 0:00:18.6]} 98. Ka1 {[%clk
0:00:29.9]} 98... a5 {[%clk 0:00:18.5]} 99. Kb1 {[%clk 0:00:30.8]} 99... Ka6
{[%clk 0:00:19.4]} 100. Ka1 {[%clk 0:00:31.5]} 100... Kb6 {[%clk 0:00:20.3]}
101. Kb1 {[%clk 0:00:32.4]} 101... Kc6 {[%clk 0:00:21.1]} 102. Ka1 {[%clk
0:00:33.3]} 102... Kc5 {[%clk 0:00:22]} 103. Kb1 {[%clk 0:00:34.2]} 103... Kd5
{[%clk 0:00:22.8]} 104. Ka1 {[%clk 0:00:34.8]} 104... Kc4 {[%clk 0:00:23.7]}
105. Kb1 {[%clk 0:00:35.7]} 105... Kb4 {[%clk 0:00:24.3]} 106. Ka1 {[%clk
0:00:36.6]} 106... Kc3 {[%clk 0:00:24.8]} 107. Kb1 {[%clk 0:00:37.5]} 107... Kb3
{[%clk 0:00:25.6]} 108. Ka1 {[%clk 0:00:38.1]} 108... Ka3 {[%clk 0:00:26.5]}
109. Kb1 {[%clk 0:00:38.5]} 109... Ka4 {[%clk 0:00:27.4]} 110. Ka1 {[%clk
0:00:39.1]} 110... Kb5 {[%clk 0:00:28.3]} 111. Kb1 {[%clk 0:00:38.9]} 111... Kb4
{[%clk 0:00:28.6]} 112. Ka1 {[%clk 0:00:38.2]} 112... Ka3 {[%clk 0:00:28.6]}
113. Kb1 {[%clk 0:00:37.7]} 113... a4 {[%clk 0:00:26.6]} 114. Ka1 {[%clk
0:00:37.4]} 114... Kb4 {[%clk 0:00:27.1]} 115. Ka2 {[%clk 0:00:37.7]} 115... Ka5
{[%clk 0:00:27.8]} 116. Ka3 {[%clk 0:00:38.6]} 116... Kb5 {[%clk 0:00:28.2]}
117. Ka2 {[%clk 0:00:39.2]} 117... Kb4 {[%clk 0:00:28.7]} 118. Kb2 {[%clk
0:00:40.1]} 118... a3+ {[%clk 0:00:28.3]} 119. Ka2 {[%clk 0:00:40.6]} 119... Ka4
{[%clk 0:00:29.2]} 120. Ka1 {[%clk 0:00:41]} 120... Kb3 {[%clk 0:00:30.1]} 121.
Kb1 {[%clk 0:00:41.3]} 121... Kb4 {[%clk 0:00:31]} 122. Ka2 {[%clk 0:00:41.6]}
122... Ka4 {[%clk 0:00:31.9]} 123. Ka1 {[%clk 0:00:42.1]} 123... Kb3 {[%clk
0:00:32.7]} 124. Kb1 {[%clk 0:00:42.7]} 124... a2+ {[%clk 0:00:33.6]} 125. Ka1
{[%clk 0:00:43.1]} 125... Ka3 {[%clk 0:00:34.5]} 1/2-1/2

[Event "Late-Titled-Tuesday-Blitz-January-23-2024"]
[Site "Chess.com"]
[Date "2024.01.23"]
[Round "2"]
[White "zverr1"]
[Black "imdarealist"]
[Result "1/2-1/2"]
[WhiteElo "2509"]
[BlackElo "2297"]
[TimeControl "180+1"]
[EndTime "14:20:09 PST"]
[Termination "Game drawn by repetition"]

1. e4 {[%clk 0:03:00.9]} 1... e5 {[%clk 0:02:59.4]} 2. Nf3 {[%clk 0:03:00.8]}
2... Nf6 {[%clk 0:02:59.8]} 3. Nc3 {[%clk 0:03:00.5]} 3... Bb4 {[%clk 0:02:59]}
4. Nxe5 {[%clk 0:02:58.9]} 4... O-O {[%clk 0:02:58.6]} 5. Be2 {[%clk 0:02:57.6]}
5... Re8 {[%clk 0:02:57.1]} 6. Nd3 {[%clk 0:02:57.8]} 6... Bxc3 {[%clk
0:02:56.2]} 7. dxc3 {[%clk 0:02:58.7]} 7... Nxe4 {[%clk 0:02:56.6]} 8. O-O
{[%clk 0:02:59.4]} 8... d5 {[%clk 0:02:56.9]} 9. Bf4 {[%clk 0:02:55]} 9... c6
{[%clk 0:02:56.1]} 10. Bg4 {[%clk 0:02:47.2]} 10... Nd7 {[%clk 0:02:49.4]} 11.
Re1 {[%clk 0:02:43]} 11... Ndf6 {[%clk 0:02:49.5]} 12. Bxc8 {[%clk 0:02:37.9]}
12... Rxc8 {[%clk 0:02:50.4]} 13. f3 {[%clk 0:02:35.9]} 13... Nd6 {[%clk
0:02:43.6]} 14. Rxe8+ {[%clk 0:02:36.2]} 14... Ndxe8 {[%clk 0:02:42]} 15. Qe2
{[%clk 0:02:28.6]} 15... Nd6 {[%clk 0:02:34.1]} 16. Re1 {[%clk 0:02:26.1]} 16...
Nf5 {[%clk 0:02:29.3]} 17. Bg5 {[%clk 0:02:17.4]} 17... h6 {[%clk 0:02:28.9]}
18. Qe5 {[%clk 0:02:07.7]} 18... Qb6+ {[%clk 0:02:09.5]} 19. Kf1 {[%clk
0:01:48.1]} 19... Re8 {[%clk 0:01:59.7]} 20. Qxf5 {[%clk 0:01:46]} 20... Rxe1+
{[%clk 0:01:59.9]} 21. Nxe1 {[%clk 0:01:46.9]} 21... hxg5 {[%clk 0:01:59.3]} 22.
Nd3 {[%clk 0:01:44.6]} 22... Qe3 {[%clk 0:01:57.6]} 23. Qc8+ {[%clk 0:01:05.8]}
23... Kh7 {[%clk 0:01:57.3]} 24. Qxb7 {[%clk 0:01:06.5]} 24... g4 {[%clk
0:01:57.6]} 25. Qxf7 {[%clk 0:01:03.6]} 25... gxf3 {[%clk 0:01:55.9]} 26. gxf3
{[%clk 0:01:04.4]} 26... Qxf3+ {[%clk 0:01:46.9]} 27. Nf2 {[%clk 0:01:04.2]}
27... Qe3 {[%clk 0:01:30.7]} 28. Qc7 {[%clk 0:00:51.1]} 28... Qc1+ {[%clk
0:01:03.5]} 29. Kg2 {[%clk 0:00:51.2]} 29... Qxb2 {[%clk 0:01:03.2]} 30. Qxc6
{[%clk 0:00:37.1]} 30... Qxa2 {[%clk 0:00:55.3]} 31. Qb7 {[%clk 0:00:19]} 31...
Qxc2 {[%clk 0:00:39]} 32. Qxa7 {[%clk 0:00:18.7]} 32... Qxc3 {[%clk 0:00:39.3]}
33. Qa6 {[%clk 0:00:16]} 33... Qc2 {[%clk 0:00:36.6]} 34. Qe6 {[%clk 0:00:12.2]}
34... Qg6+ {[%clk 0:00:23.8]} 35. Kf1 {[%clk 0:00:10.7]} 35... Qh5 {[%clk
0:00:20.8]} 36. Qe7 {[%clk 0:00:04.9]} 36... Qxh2 {[%clk 0:00:16.6]} 37. Qe6
{[%clk 0:00:05.6]} 37... Qg3 {[%clk 0:00:12.9]} 38. Qf5+ {[%clk 0:00:05.5]}
38... Qg6 {[%clk 0:00:12.4]} 39. Qh3+ {[%clk 0:00:06]} 39... Kg8 {[%clk
0:00:12.6]} 40. Qc8+ {[%clk 0:00:06.2]} 40... Qe8 {[%clk 0:00:12.4]} 41. Qf5
{[%clk 0:00:04.2]} 41... Qb5+ {[%clk 0:00:08.9]} 42. Kg1 {[%clk 0:00:03.9]}
42... Qd7 {[%clk 0:00:08]} 43. Qe5 {[%clk 0:00:03]} 43... Kf7 {[%clk 0:00:08.2]}
44. Kf1 {[%clk 0:00:03.3]} 44... Qe6 {[%clk 0:00:08.4]} 45. Qc7+ {[%clk
0:00:03.1]} 45... Kg6 {[%clk 0:00:08]} 46. Qg3+ {[%clk 0:00:03.8]} 46... Kf7
{[%clk 0:00:08.6]} 47. Qc7+ {[%clk 0:00:03.8]} 47... Qe7 {[%clk 0:00:09.4]} 48.
Qc6 {[%clk 0:00:03.6]} 48... Qe3 {[%clk 0:00:07.8]} 49. Qc7+ {[%clk 0:00:03.6]}
49... Kg6 {[%clk 0:00:08.2]} 50. Qh2 {[%clk 0:00:02.2]} 50... Qc1+ {[%clk
0:00:08]} 51. Kg2 {[%clk 0:00:02.9]} 51... Qg5+ {[%clk 0:00:06.5]} 52. Kf1
{[%clk 0:00:03.6]} 52... Ne4 {[%clk 0:00:06.5]} 53. Nxe4 {[%clk 0:00:02.9]}
53... dxe4 {[%clk 0:00:06.6]} 54. Qc2 {[%clk 0:00:01.9]} 54... Qf5+ {[%clk
0:00:06]} 55. Kg1 {[%clk 0:00:02.4]} 55... Qg4+ {[%clk 0:00:06]} 56. Kh1 {[%clk
0:00:02.4]} 56... Qf3+ {[%clk 0:00:06]} 57. Kg1 {[%clk 0:00:03.1]} 57... Kf5
{[%clk 0:00:05.6]} 58. Qc5+ {[%clk 0:00:03.2]} 58... Kf4 {[%clk 0:00:05.5]} 59.
Qc7+ {[%clk 0:00:03.7]} 59... Ke3 {[%clk 0:00:05.4]} 60. Qc3+ {[%clk 0:00:03.4]}
60... Ke2 {[%clk 0:00:05.5]} 61. Qc2+ {[%clk 0:00:03.7]} 61... Ke3 {[%clk
0:00:05.1]} 62. Qc3+ {[%clk 0:00:02.3]} 62... Kf4 {[%clk 0:00:05.6]} 63. Qc7+
{[%clk 0:00:03.1]} 63... Kg4 {[%clk 0:00:05.1]} 64. Qxg7+ {[%clk 0:00:03.4]}
64... Kf5 {[%clk 0:00:05.7]} 65. Qf7+ {[%clk 0:00:03.7]} 65... Ke5 {[%clk
0:00:06.2]} 66. Qe7+ {[%clk 0:00:04.5]} 66... Kd4 {[%clk 0:00:06.7]} 67. Qd6+
{[%clk 0:00:04.7]} 67... Kc3 {[%clk 0:00:06.7]} 68. Qc5+ {[%clk 0:00:04.8]}
68... Kd2 {[%clk 0:00:07]} 69. Qb4+ {[%clk 0:00:02.6]} 69... Ke2 {[%clk
0:00:06]} 70. Qb2+ {[%clk 0:00:02]} 70... Kd1 {[%clk 0:00:06]} 71. Qb1+ {[%clk
0:00:02.3]} 71... Kd2 {[%clk 0:00:06.4]} 72. Qb2+ {[%clk 0:00:03]} 72... Kd3
{[%clk 0:00:06.8]} 73. Qb3+ {[%clk 0:00:03.6]} 73... Ke2 {[%clk 0:00:06.7]} 74.
Qc2+ {[%clk 0:00:03.9]} 74... Ke3 {[%clk 0:00:07.6]} 75. Qc3+ {[%clk 0:00:03.3]}
75... Kf4 {[%clk 0:00:08.3]} 76. Qf6+ {[%clk 0:00:04.1]} 76... Kg3 {[%clk
0:00:08.7]} 77. Qg5+ {[%clk 0:00:03.2]} 77... Qg4 {[%clk 0:00:09]} 78. Qxg4+
{[%clk 0:00:03]} 78... Kxg4 {[%clk 0:00:09.9]} 79. Kf2 {[%clk 0:00:03]} 79...
Kf4 {[%clk 0:00:10.4]} 80. Ke2 {[%clk 0:00:03.6]} 80... e3 {[%clk 0:00:10.7]}
81. Ke1 {[%clk 0:00:04.2]} 81... Ke4 {[%clk 0:00:11.6]} 82. Ke2 {[%clk
0:00:03.5]} 82... Kd4 {[%clk 0:00:12.3]} 83. Ke1 {[%clk 0:00:04]} 83... Ke5
{[%clk 0:00:12.3]} 84. Ke2 {[%clk 0:00:04.5]} 84... Ke4 {[%clk 0:00:13.2]} 85.
Ke1 {[%clk 0:00:04.9]} 85... Kf3 {[%clk 0:00:14.1]} 86. Kf1 {[%clk 0:00:05.2]}
86... Kf4 {[%clk 0:00:12.5]} 87. Ke2 {[%clk 0:00:06.1]} 87... Ke4 {[%clk
0:00:12.8]} 88. Ke1 {[%clk 0:00:06.5]} 88... Kd3 {[%clk 0:00:13.5]} 89. Kd1
{[%clk 0:00:06.8]} 89... Kc3 {[%clk 0:00:13.6]} 90. Ke2 {[%clk 0:00:07.7]} 90...
Kd4 {[%clk 0:00:14.3]} 91. Ke1 {[%clk 0:00:08]} 91... Kd3 {[%clk 0:00:14.3]} 92.
Kd1 {[%clk 0:00:08.2]} 92... Ke4 {[%clk 0:00:14.5]} 93. Ke2 {[%clk 0:00:09.1]}
93... Kf4 {[%clk 0:00:14.1]} 94. Ke1 {[%clk 0:00:09.3]} 94... Kf3 {[%clk
0:00:14.2]} 95. Kf1 {[%clk 0:00:09.6]} 95... Ke4 {[%clk 0:00:14.3]} 96. Ke2
{[%clk 0:00:10.5]} 1/2-1/2

[Event "Late-Titled-Tuesday-Blitz-January-23-2024"]
[Site "Chess.com"]
[Date "2024.01.23"]
[Round "3"]
[White "EsmeraldasAnderson03"]
[Black "ritanovikova"]
[Result "1-0"]
[WhiteElo "2430"]
[BlackElo "2165"]
[TimeControl "180+1"]
[EndTime "14:23:17 PST"]
[Termination "EsmeraldasAnderson03 won by resignation"]

1. d4 {[%clk 0:03:00.9]} 1... e5 {[%clk 0:02:57.5]} 2. dxe5 {[%clk 0:03:00.7]}
2... Nc6 {[%clk 0:02:57.1]} 3. Nf3 {[%clk 0:03:01.6]} 3... Qe7 {[%clk
0:02:57.2]} 4. Bf4 {[%clk 0:03:01.3]} 4... Qb4+ {[%clk 0:02:57]} 5. Bd2 {[%clk
0:03:01.7]} 5... Qxb2 {[%clk 0:02:56.3]} 6. Nc3 {[%clk 0:03:02]} 6... Bb4 {[%clk
0:02:55.6]} 7. Rb1 {[%clk 0:03:02.7]} 7... Qa3 {[%clk 0:02:55.5]} 8. Rb3 {[%clk
0:02:59.1]} 8... Qa5 {[%clk 0:02:55]} 9. e4 {[%clk 0:02:54.2]} 9... Nge7 {[%clk
0:02:54.4]} 10. a3 {[%clk 0:02:50]} 10... Bxc3 {[%clk 0:02:47]} 11. Bxc3 {[%clk
0:02:50.9]} 11... Qa4 {[%clk 0:02:47]} 12. Bd3 {[%clk 0:02:39.5]} 12... O-O
{[%clk 0:02:45.8]} 13. O-O {[%clk 0:02:39.3]} 13... Ng6 {[%clk 0:02:43.4]} 14.
Re1 {[%clk 0:02:36.2]} 14... Re8 {[%clk 0:02:42.7]} 15. Bb5 {[%clk 0:02:33.2]}
15... Qxb3 {[%clk 0:02:35.5]} 16. cxb3 {[%clk 0:02:34.1]} 16... a6 {[%clk
0:02:34.8]} 17. Bc4 {[%clk 0:02:33.1]} 17... b5 {[%clk 0:02:33.7]} 18. Bd5
{[%clk 0:02:33.1]} 18... Nge7 {[%clk 0:02:27.2]} 19. Ng5 {[%clk 0:02:31.7]}
19... Nxd5 {[%clk 0:02:26.8]} 20. exd5 {[%clk 0:02:32.6]} 20... Ne7 {[%clk
0:02:25.1]} 21. Qh5 {[%clk 0:02:31.8]} 21... h6 {[%clk 0:02:23.6]} 22. Qxf7+
{[%clk 0:02:31.5]} 22... Kh8 {[%clk 0:02:23.9]} 23. Qxe8+ {[%clk 0:02:29.9]} 1-0

[Event "Late-Titled-Tuesday-Blitz-January-23-2024"]
[Site "Chess.com"]
[Date "2024.01.23"]
[Round "3"]
[White "Rodalquilar"]
[Black "rynos0411"]
[Result "1-0"]
[WhiteElo "2750"]
[BlackElo "2500"]
[TimeControl "180+1"]
[EndTime "14:23:31 PST"]
[Termination "Rodalquilar won by resignation"]

1. d4 {[%clk 0:03:00.9]} 1... Nf6 {[%clk 0:02:58.9]} 2. Nf3 {[%clk 0:03:01]}
2... e6 {[%clk 0:02:57]} 3. Bf4 {[%clk 0:03:01.2]} 3... d5 {[%clk 0:02:56.7]} 4.
e3 {[%clk 0:03:00.8]} 4... Bd6 {[%clk 0:02:56.9]} 5. Nbd2 {[%clk 0:02:57.5]}
5... Bxf4 {[%clk 0:02:54.9]} 6. exf4 {[%clk 0:02:57.8]} 6... c5 {[%clk
0:02:55.8]} 7. dxc5 {[%clk 0:02:56.2]} 7... Qc7 {[%clk 0:02:56.1]} 8. g3 {[%clk
0:02:54.9]} 8... Qxc5 {[%clk 0:02:55.9]} 9. Bd3 {[%clk 0:02:53.4]} 9... Nc6
{[%clk 0:02:55.4]} 10. c3 {[%clk 0:02:48.5]} 10... O-O {[%clk 0:02:54.1]} 11.
O-O {[%clk 0:02:48.5]} 11... b6 {[%clk 0:02:53.9]} 12. Re1 {[%clk 0:02:48.4]}
12... Bb7 {[%clk 0:02:53.8]} 13. Nb3 {[%clk 0:02:48.3]} 13... Qd6 {[%clk
0:02:50.9]} 14. Nbd4 {[%clk 0:02:48.4]} 14... Nxd4 {[%clk 0:02:50.4]} 15. Nxd4
{[%clk 0:02:48.6]} 15... Rfe8 {[%clk 0:02:50.9]} 16. Bb5 {[%clk 0:02:44.3]}
16... Re7 {[%clk 0:02:50.7]} 17. a4 {[%clk 0:02:42.5]} 17... a6 {[%clk
0:02:36.1]} 18. Bf1 {[%clk 0:02:41.8]} 18... e5 {[%clk 0:02:36.5]} 19. Nf5
{[%clk 0:02:41.7]} 19... Qd7 {[%clk 0:02:33.7]} 20. Nxe7+ {[%clk 0:02:41.8]}
20... Qxe7 {[%clk 0:02:34.6]} 21. Rxe5 {[%clk 0:02:41.3]} 21... Qc5 {[%clk
0:02:35.3]} 22. Qd4 {[%clk 0:02:28.3]} 22... Qc7 {[%clk 0:02:34.4]} 23. Rae1
{[%clk 0:02:25.7]} 23... a5 {[%clk 0:02:30.9]} 24. Re7 {[%clk 0:02:24.6]} 24...
Qc8 {[%clk 0:02:30.2]} 25. Bb5 {[%clk 0:02:21.9]} 25... h6 {[%clk 0:02:25.1]}
26. Qxb6 {[%clk 0:02:21.2]} 1-0

[Event "Late-Titled-Tuesday-Blitz-January-23-2024"]
[Site "Chess.com"]
[Date "2024.01.23"]
[Round "3"]
[White "shirovin"]
[Black "el_sporco"]
[Result "0-1"]
[WhiteElo "1996"]
[BlackElo "2367"]
[TimeControl "180+1"]
[EndTime "14:24:00 PST"]
[Termination "el_sporco won by resignation"]

1. e4 {[%clk 0:03:00.9]} 1... e6 {[%clk 0:02:57.7]} 2. d3 {[%clk 0:02:59.5]}
2... d5 {[%clk 0:02:58.6]} 3. Nd2 {[%clk 0:02:59.2]} 3... c5 {[%clk 0:02:57.5]}
4. Ngf3 {[%clk 0:02:59.6]} 4... Nc6 {[%clk 0:02:57.4]} 5. g3 {[%clk 0:03:00.1]}
5... g6 {[%clk 0:02:57.1]} 6. Bg2 {[%clk 0:03:00.1]} 6... Bg7 {[%clk 0:02:57.8]}
7. O-O {[%clk 0:03:00.2]} 7... Nge7 {[%clk 0:02:58.1]} 8. Qe2 {[%clk 0:02:58.5]}
8... O-O {[%clk 0:02:58.3]} 9. exd5 {[%clk 0:02:58.1]} 9... exd5 {[%clk
0:02:55.7]} 10. c4 {[%clk 0:02:57.2]} 10... Re8 {[%clk 0:02:53.5]} 11. Re1
{[%clk 0:02:44]} 11... Bg4 {[%clk 0:02:52.3]} 12. Qf1 {[%clk 0:02:31.6]} 12...
Nf5 {[%clk 0:02:47.9]} 13. a3 {[%clk 0:02:21.8]} 13... Ncd4 {[%clk 0:02:34.4]}
14. Nxd4 {[%clk 0:02:14.7]} 14... Nxd4 {[%clk 0:02:30.2]} 15. Rxe8+ {[%clk
0:02:00]} 15... Qxe8 {[%clk 0:02:31.1]} 16. h3 {[%clk 0:01:59.7]} 16... Be2
{[%clk 0:02:29.3]} 0-1

[Event "Late-Titled-Tuesday-Blitz-January-23-2024"]
[Site "Chess.com"]
[Date "2024.01.23"]
[Round "3"]
[White "FREZZY23"]
[Black "GMRAVEN_ON_YOUTUBE"]
[Result "0-1"]
[WhiteElo "2516"]
[BlackElo "2846"]
[TimeControl "180+1"]
[EndTime "14:24:21 PST"]
[Termination "GMRAVEN_ON_YOUTUBE won by resignation"]

1. Nf3 {[%clk 0:02:55.5]} 1... f5 {[%clk 0:02:59.5]} 2. c4 {[%clk 0:02:54.5]}
2... Nf6 {[%clk 0:02:59.6]} 3. g3 {[%clk 0:02:54.9]} 3... g6 {[%clk 0:03:00.1]}
4. Bg2 {[%clk 0:02:55]} 4... Bg7 {[%clk 0:03:00.8]} 5. O-O {[%clk 0:02:55.4]}
5... O-O {[%clk 0:03:01.4]} 6. Nc3 {[%clk 0:02:55.5]} 6... d6 {[%clk 0:03:01.9]}
7. d3 {[%clk 0:02:55.3]} 7... e5 {[%clk 0:03:01.7]} 8. e4 {[%clk 0:02:55.4]}
8... Nc6 {[%clk 0:02:58.8]} 9. Re1 {[%clk 0:02:54.5]} 9... fxe4 {[%clk
0:02:29.3]} 10. Nxe4 {[%clk 0:02:44.4]} 10... Nxe4 {[%clk 0:02:26.1]} 11. dxe4
{[%clk 0:02:38.2]} 11... Bg4 {[%clk 0:02:26]} 12. h3 {[%clk 0:02:34.9]} 12...
Bxf3 {[%clk 0:02:26.2]} 13. Bxf3 {[%clk 0:02:35.8]} 13... Qf6 {[%clk 0:02:26.3]}
14. Kg2 {[%clk 0:02:30]} 14... Nd4 {[%clk 0:02:26.1]} 15. Re3 {[%clk 0:02:29]}
15... Rf7 {[%clk 0:02:16.4]} 16. Rd3 {[%clk 0:01:29.6]} 16... Raf8 {[%clk
0:02:06]} 17. Rxd4 {[%clk 0:01:29.3]} 17... exd4 {[%clk 0:02:06]} 0-1